Cogmind - Beta 10.2 @@@ ROGUE MODE // 2021.07.23 @ 12:43:50 Player: zapruda Result: Destroyed by Y-45 Defender with Beam Rifle Performance ------------- Evolutions (1) 500 Regions Visited (3) 600 Robots Destroyed (18) 90 Value Destroyed (369) 369 Prototype IDs (3) 60 Alien Tech Used (0) 0 Bonus (16) 16 TOTAL SCORE: 1635 Bonus ------- High Alert Combat Kills 16 Cogmind --------- Core Integrity 0/400 Matter 208/300 Energy 235/550 System Corruption 3% Temperature Cool (199) Movement Core (250) Ox4 Location -9/Storage Parts ------- > --- POWER (1) -------- Ion Engine > --- PROPULSION (3) --- (None) > --- UTILITY (3) ------ Large Battery Signal Interpreter Shield Generator > --- WEAPON (2) ------- Advanced Beam Cannon > --- INVENTORY (4) ---- Improved Heat Sink Weight Redist. System Peak State ------------ > --- POWER ------------ Heavy Ion Engine > --- PROPULSION ------- Flight Unit Flight Unit Improved Flight Unit > --- UTILITY ---------- Improved Heat Sink Weight Redist. System Signal Interpreter > --- WEAPON ----------- Advanced Beam Cannon Rocket Launcher > --- INVENTORY -------- Large Battery Hardened Light Armor Plating Heavy Assault Rifle Rocket Launcher [Rating: 19] Favorites ----------- Power Ion Engine Engine Ion Engine Propulsion Flight Unit Leg Aluminum Leg Wheel Compact Wheel Flight Unit Flight Unit Utility Signal Interpreter Device Weight Redist. System Storage Small Storage Unit Processor Signal Interpreter Protection Hardened Light Armor Plating Weapon Assault Rifle Energy Cannon Advanced Beam Cannon Ballistic Gun Assault Rifle Launcher Rocket Launcher Build | -11 -10 -9 -9 ------- Run | Scr Mat Mat Sto Slots Evolved 2 | . . 2 . Power . | . . . . Propulsion 1 | . . 1 . Utility 1 | . . 1 . Weapon . | . . . . Parts Attached 36 | . 12 8 16 Power 4 | . 1 1 2 Engine 4 | . 1 1 2 Core . | . . . . Reactor . | . . . . Propulsion 10 | . 6 2 2 Treads . | . . . . Leg . | . . . . Wheel 3 | . 2 . 1 Hover . | . . . . Flight 7 | . 4 2 1 Utility 11 | . 3 2 6 Device 7 | . 1 2 4 Storage 1 | . . . 1 Processor 2 | . 2 . . Hackware . | . . . . Protection 1 | . . . 1 Artifact . | . . . . Weapon 11 | . 2 3 6 Energy Gun . | . . . . Energy Cannon 6 | . . 2 4 Ballistic Gun 2 | . 1 . 1 Ballistic Cannon . | . . . . Launcher 3 | . 1 1 1 Special Weapon . | . . . . Impact Weapon . | . . . . Slashing Weapon . | . . . . Piercing Weapon . | . . . . Special Melee Weapon . | . . . . Unidentified Prototypes 3 | . . 3 . Parts Lost 13 | . 3 2 8 Power 2 | . 1 . 1 Propulsion 4 | . . 1 3 Utility 3 | . 1 . 2 Weapon 4 | . 1 1 2 Highest Loss Streak 3 | . 3 2 3 Average Slot Usage (%) 78 | . 88 85 61 Engine 10 | . 12 11 7 Leg 4 | . 8 . . Wheel 6 | . 9 . 4 Flight 12 | . 10 23 11 Device 11 | . 6 14 17 Storage 2 | . 4 . . Processor 12 | . 12 18 11 Ballistic Gun 13 | . 22 7 4 Launcher 2 | . 1 8 1 Naked Turns . | . . . . Heaviest Build 16 | 13 14 15 16 Greatest Support 32 | 20 32 20 16 Greatest Overweight (x) 2 | . 1 . 2 Average Overweight (x) . | . . . . Largest Inventory Capacity 6 | . 6 4 4 Average Capacity 4 | . 4 4 4 Most Carried 6 | . 6 4 4 Average Carried 3 | . 4 3 2 Final Capacity 6 | 6 4 4 4 Final Carried 6 | 6 4 4 2 Class Distribution -------------------- 80% | Mutant 19% | Scavenger-Mutant Dominant Class ---------------- Mutant | -10/Materials Scavenger-Mutant | -9/Materials Mutant | -9/Storage Resources | -11 -10 -9 -9 ----------- Run | Scr Mat Mat Sto Matter Collected 703 | 200 232 55 216 Remotely . | . . . . Salvage Created 506 | . 243 55 208 Parts 45 | . 21 8 16 Haulers Intercepted 4 | . 1 1 2 Recyclers Shooed . | . . . . Parts Field Recycled . | . . . . Retrieved Matter . | . . . . Parts Self-Destructed . | . . . . Prevented . | . . . . Kills | -11 -10 -9 -9 ------- Run | Scr Mat Mat Sto Combat Hostiles Destroyed 10 | . 6 . 4 Guns 6 | . 6 . . Cannons 3 | . . . 3 AOE 1 | . . . 1 Classes Destroyed 7 | . 5 . 2 Builder 1 | . . . 1 Hauler 4 | . 1 1 2 Operator 1 | . 1 . . Watcher 2 | . 1 1 . Swarmer 4 | . 3 . 1 Grunt 5 | . 3 . 2 Sentry 1 | . . . 1 Best Kill Streak 3 | . 3 2 3 Combat Bots Only 3 | . 3 . 2 Max Kills in Single Turn 1 | . 1 1 1 Gunslinging . | . . . . Exploded 1 | . . . 1 Melee . | . . . . Uniques/NPCs Destroyed . | . . . . Combat | -11 -10 -9 -9 -------- Run | Scr Mat Mat Sto Damage Taken 1741 | . 420 223 1098 Core 526 | . 121 44 361 Absorbed by Shields 102 | . . . 102 Core Remaining (%) 75 | 100 51 . . Volleys Fired 71 | . 30 10 31 Largest 2 | . 2 2 2 Hottest 68 | . 40 68 68 Shots Fired 95 | . 49 11 35 Gun 72 | . 49 4 19 Cannon 18 | . . 6 12 Launcher 5 | . . 1 4 Special . | . . . . Kinetic 72 | . 49 4 19 Thermal 18 | . . 6 12 Explosive 5 | . . 1 4 Electromagnetic . | . . . . Robot Hit Streak 9 | . 4 8 9 Robot Miss Streak 4 | . 4 3 1 Penetration Max . | . . . . Secondary Targets 3 | . 3 . . Max Gunslinging Chain 1 | . 1 . . Shots Hit Robots 60 | . 24 8 28 Core Hits 29 | . 14 3 12 Critical Hits 4 | . . 1 3 Critical Kills 1 | . . . 1 Critical Parts Destroyed 2 | . . 1 1 Melee Attacks . | . . . . Impact . | . . . . Slashing . | . . . . Piercing . | . . . . Sneak Attacks . | . . . . Combat Hostiles . | . . . . Follow-up Attacks . | . . . . Damage Inflicted 1125 | . 372 170 583 Guns 625 | . 372 41 212 Cannons 348 | . . 123 225 Explosions 152 | . . 6 146 Melee . | . . . . Ramming . | . . . . Kinetic 625 | . 372 41 212 Thermal 348 | . . 123 225 Explosive 152 | . . 6 146 Electromagnetic . | . . . . Impact . | . . . . Slashing . | . . . . Piercing . | . . . . Highest Corruption 3 | . 2 3 3 Average Corruption 2 | . 2 3 3 Corruption Purged . | . . . . Effects 9 | . . 3 6 Message Errors 3 | . . 1 2 Matter Fused 3 | . . . 3 Targeting Errors 3 | . . 2 1 Overload Shots . | . . . . Overflow Damage 7 | . . . 7 Projectiles 7 | . . . 7 Explosions . | . . . . Melee . | . . . . Knockbacks . | . . . . Impact . | . . . . Kinetic . | . . . . Secondary . | . . . . Self-Inflicted Damage 27 | . . . 27 Shots 1 | . . . 1 Rammed . | . . . . Targets Rammed . | . . . . Kicked . | . . . . Crushed . | . . . . Highest Temperature 193 | . 8 16 193 Average Temperature 48 | . 3 11 73 Received Heat Transfer 559 | . 105 54 400 Siege Activations . | . . . . Robots Corrupted . | . . . . Combat Hostiles . | . . . . Parts Fried . | . . . . Impact Corruptions . | . . . . Robots Melted . | . . . . Combat Hostiles . | . . . . Parts Melted . | . . . . Heat Transferred 629 | . . 222 407 Parts Sabotaged . | . . . . Parts Stolen . | . . . . Parts Stripped . | . . . . Power Chain Reactions . | . . . . Missiles Intercepted . | . . . . Alert | -11 -10 -9 -9 ------- Run | Scr Mat Mat Sto Peak Influence 480 | . 294 83 480 Initial 39 | . . 39 32 Average 135 | . 123 59 173 Maximum Alert Level 2 | . 1 . 2 Low Security (%) 77 | . 77 100 69 Level 1 19 | . 22 . 21 Level 2 3 | . . . 8 Level 3 . | . . . . Level 4 . | . . . . Level 5 . | . . . . High Security . | . . . . Max Security . | . . . . Squads Dispatched 3 | . 1 . 2 Investigation . | . . . . Extermination . | . . . . Reinforcement 3 | . 1 . 2 Assault . | . . . . Garrison . | . . . . Intercept . | . . . . Construction Impeded . | . . . . Haulers Reinforced . | . . . . Stealth | -11 -10 -9 -9 --------- Run | Scr Mat Mat Sto Distress Signals 3 | . 1 1 1 Communications Jammed . | . . . . Distress Signals . | . . . . Times Spotted 50 | . 18 4 28 Peak Tracking Total 14 | . 4 3 14 Tactical Retreats 8 | . 3 . 5 Traps | -11 -10 -9 -9 ------- Run | Scr Mat Mat Sto Traps Triggered 4 | . 2 . 2 Indirectly . | . . . . Trap Hack Attempts . | . . . . Triggered . | . . . . Disarmed . | . . . . Reprogrammed . | . . . . Reused . | . . . . Traps Extracted . | . . . . Installed . | . . . . Triggered . | . . . . Machines | -11 -10 -9 -9 ---------- Run | Scr Mat Mat Sto Machines Disabled 4 | . . . 4 Max in Single Turn 1 | . . . 1 Machines Sabotaged . | . . . . Garrisons Compromised . | . . . . Overloaded Fab Kills . | . . . . Fab Network Shutdowns . | . . . . Hacking | -11 -10 -9 -9 --------- Run | Scr Mat Mat Sto Machines Accessed 6 | . 1 1 4 Terminals 5 | . 1 1 3 Fabricators . | . . . . Repair Stations 1 | . . . 1 Recycling Units . | . . . . Scanalyzers . | . . . . Garrison Access . | . . . . Total Hacks 10 | . 3 2 5 Successful 7 | . 1 1 5 Failed 3 | . 2 1 . Catastrophic . | . . . . Database Lockouts . | . . . . Manual . | . . . . Terminals 8 | . 3 2 3 Fabricators . | . . . . Repair Stations 2 | . . . 2 Recycling Units . | . . . . Scanalyzers . | . . . . Garrison Access . | . . . . Terminal Hacks 5 | . 1 1 3 Robot Analysis 1 | . 1 . . Open Door 3 | . . . 3 Dispatch Records 1 | . . 1 . Fabricator Hacks . | . . . . Repair Station Hacks 2 | . . . 2 Scan Component 1 | . . . 1 Repair 1 | . . . 1 Recycling Unit Hacks . | . . . . Scanalyzer . | . . . . Garrison Access Hacks . | . . . . Unauthorized Hacks . | . . . . Terminals . | . . . . Fabricators . | . . . . Repair Stations . | . . . . Recycling Units . | . . . . Scanalyzers . | . . . . Garrison Access . | . . . . Data Cores Recovered . | . . . . Used . | . . . . Hacking Detections 2 | . 1 1 . Full Trace Events . | . . . . Feedback Events . | . . . . Feedback Blocked . | . . . . Robot Schematics Acquired . | . . . . Robots Built . | . . . . Matter . | . . . . Time . | . . . . Total Robot Build Rating . | . . . . Part Schematics Acquired . | . . . . Parts Built . | . . . . Matter . | . . . . Time . | . . . . Total Part Build Rating . | . . . . Parts Repaired 1 | . . . 1 Time 51 | . . . 51 Parts Recycled . | . . . . Recycled Matter . | . . . . Retrieved Matter . | . . . . Retrieved Components . | . . . . Parts Scanalyzed . | . . . . Part Schematics Acquired . | . . . . Parts Damaged . | . . . . Bothacking | -11 -10 -9 -9 ------------ Run | Scr Mat Mat Sto Used RIF Installer . | . . . . Robots Hacked . | . . . . Non-combat . | . . . . Combat . | . . . . Robot Hacks Applied . | . . . . Relay Couplers Released . | . . . . Robots Rewired . | . . . . Allies Hacked . | . . . . Hacks Repelled . | . . . . Allies | -11 -10 -9 -9 -------- Run | Scr Mat Mat Sto Total Allies . | . . . . Largest Group . | . . . . Highest-Rated Group . | . . . . Highest-Rated Ally . | . . . . Total Orders . | . . . . Ally Attacks . | . . . . Total Damage . | . . . . Kills . | . . . . Allies Corrupted . | . . . . Allies Melted . | . . . . Intel | -11 -10 -9 -9 ------- Run | Scr Mat Mat Sto Robot Analysis Total 1 | . 1 . . Derelict Logs Recovered . | . . . . Drone Launches . | . . . . Drone Recoveries . | . . . . Exploration | -11 -10 -9 -9 ------------- Run | Scr Mat Mat Sto Turns Passed 817 | . 424 88 305 Spaces Moved 938 | 1 431 131 375 Core 50 | . 1 . 49 Treads . | . . . . Legs 78 | 1 77 . . Wheels 95 | . 95 . . Hover . | . . . . Flight 715 | . 258 131 326 Fastest Speed 32 | 120 37 32 34 Average Speed 55 | 120 73 37 39 Slowest Speed 150 | 120 120 40 150 Overloaded Moves . | . . . . Propulsion Burnouts . | . . . . Robots Hopped 5 | . 1 1 3 Cave-ins Triggered . | . . . . Exploration Rate (%) 43 | 1 74 15 83 Regions Visited 3 Branch Regions 1 Pre-discovered Areas . | . . . . Known Exits Taken 2 | . 1 1 . Unknown Exits Taken 1 | 1 . . . Scrap Searched . | . . . . Spaces Dug . | . . . . Terrain Destroyed 70 | . . 6 64 Melee . | . . . . Projectile . | . . . . AOE 70 | . . 6 64 Terrain Rammed . | . . . . Walls Destroyed . | . . . . Machines Disabled . | . . . . Actions | -11 -10 -9 -9 --------- Run | Scr Mat Mat Sto Total 1136 | . 489 156 491 Wait 61 | . . 1 60 Move 926 | . 428 128 370 Hop 4 | . 1 1 2 Pick Up 13 | . 6 3 4 Fast Attach 14 | . 7 4 3 Attach 11 | . . 2 9 Detach 3 | . . . 3 Swap 11 | . 5 2 4 Drop 18 | . 12 5 1 Fire 71 | . 30 10 31 Melee . | . . . . Ram . | . . . . Kick . | . . . . Crush . | . . . . Escape Stasis 4 | . . . 4 Rewire . | . . . . Trap . | . . . . Miscellaneous . | . . . . Route ------- -11/Scrapyard -10/Materials (discovered 3 exits: *Mat x2 / [*Min]) -9/Materials -9/Storage History --------- Turn | Location | Event 1 | -11/Scrapyard | Discovered new exit (range 0) 1 | -11/Scrapyard | Entered Materials 13 | -10/Materials | Discovered new exit (range 12) 277 | -10/Materials | Discovered new exit (range 14) 288 | -10/Materials | Lost 3 parts (1p1u1w) 308 | -10/Materials | Build established: Mutant 348 | -10/Materials | Discovered new exit (range 13) 424 | -10/Materials | Identified exit to Materials 425 | -10/Materials | Entered another Materials area 425 | -9/Materials | Evolved 2 slots: Propulsion x1, Utility x1 466 | -9/Materials | Discovered new exit (range 16) 513 | -9/Materials | Identified exit to Storage 513 | -9/Materials | Entered Storage 569 | -9/Storage | Repaired Imp. Flight Unit 721 | -9/Storage | Lost 3 parts (1p1n1w) 752 | -9/Storage | Core integrity fell below 50% 756 | -9/Storage | Core integrity fell below 20% 782 | -9/Storage | Lost 3 parts (1n2u) 818 | -9/Storage | Destroyed by Y-45 Defender with Beam Rifle Last Messages --------------- 00757_ K-01 Serf cleans the Compression Vault. 00766_ System corrupted: Matter fused (-5). 00766_ S-10 Pest destroyed. 00769_ K-01 Serf collects debris. 00783_ Storage Shell breached. 00787_ System corrupted: Matter fused (-7). 00787_ Acquired Shield Generator. 00789_ Acquired Adv. Beam Cannon. 00790_ Dropped Particle Cannon. 00797_ G-34 Mercenary suffers critical hit. 00797_ G-34 Mercenary destroyed. 00805_ Destroyed Sml. Laser. 00807_ G-34 Mercenary suffers critical hit. 00807_ Destroyed Aluminum Leg. 00809_ System corrupted: Adv. Beam Cannon targeting data glitched. 00811_ K-01 Serf collects debris. 00813_ G-34 Mercenary destroyed. 00814_ K-01 Serf collects debris. 00815_ Y-45 Defender suffers critical hit. 00817_ K-01 Serf collects debris. Map ----- +----------------------------------------------------+ | !## # %! ##?????????? | | !## # ###?????????? | | !?# # / #T#"????????? | | !?# ^# + "????????? | | ### ^^# # "????????? | | #!% # # ##########"????????? | | " # # ##########?????????? | | ### # + + #?????????? | | ??# # # # #?????????? | | ?## # # #?????????? | | ## # # #?????????? | | # # # #?????????? | | # # ######## # #?????????? | | # # #?????????? | | ### # #?????????? | | ### ## #+## #?????????? | | # ###########?????????? | | # #???????????????????? | | # #???????????????????? | | ##### # "" #???????????????????? | | ????? # #???????????????????? | | ????? # """ #???????????????????? | | ????? # """ ] #???##########??????? | | ????? # """ #???# #??????? | | ????#+# ? ???# "Y""" #??????? | | ?? #??########??# "kY@" #??????? | | #????????????# """"" #??????? | | #???#######??# ""??" #??????? | | !!! ""#?#"""""#??# ????" #??????? | | !!! ""###""T""#### """"" #??????? | | !!! T"# !## #??????? | | ??""# ## #??????? | | ????# ######+####??????? | | ????# #???# #????????? | | "???# """ """*##### #????????? | | T???# """ """%+ #????????? | | "???# """ """=##### #????????? | | ? ???# =#???# #????????? | | ###/###### #+#/###???# #????????? | | |#???# #????????? | | ^ #???# #????????? | | """ #???# #????????? | | /** = G" #???# #????????? | | /** %""" #??? ????????? | | % = ?? ????????? | | ?? ????????? | | ?? #???????? | | ####T###"T"#####+####? #???????? | | #?###?#####??????????# ##???????? | | #????????????????????? #????????? | +----------------------------------------------------+ Best States ------------- Heat Dissipation 42 Energy Generation 14 Energy Capacity 550 Matter Stores 300 Matter Capacity 300 Sight Range 16 Terrain Scan Density 10 ECM Strength 1 Additional Mass Support 6 Armor Coverage 150 Evasion (%) 63 Item Schematics ----------------- None Robot Schematics ------------------ None Fabricated ------------ Nothing Alien Tech Used ----------------- None Achievements -------------- None Challenges ------------ None Game ------ Seed AlphaCryofiberJammer Manual? 0 Play Time 00:16:27 Cumulative 39.9 hours Start 2021.07.23 @ 12:30:26 End 2021.07.23 @ 12:43:50 Sessions 1 Manual Loads 0 Difficulty Rogue Special Mode None Game No. 63 Rogue 63 Adventurer 0 Explorer 0 Win Type - Total 0 Types 0/0/0/0/0/0/0/0/0 Lore% 23 Gallery% 40 Achievement% 26 Wizard Run 0 Options --------- ASCII 0 Keyboard 0 Movement Mouse Keybinds 0 Fullscreen 1 Font 16/Cog Map View 76x50 Tactical HUD 1 Map Filters NONE Filters NONE Steam 1 RUN: a1d56ced-a395-42df-856c-09356ef67050